fUSD/lending_fUSD_20240127
["ID","MTS","AMOUNT","RATE_DAILY","PERIOD"]
[312875853,1706389832480,-833.38123193,0.00022999,2]
[312875854,1706389832490,-412.5888739,0.00022999,2]
[312875855,1706389832500,-280.31627603,0.00022999,2]
[312875856,1706389832512,-1693.8494585,0.00022999,2]
[312875857,1706389832523,-199.03575703,0.00022999,2]
[312875858,1706389832534,-3720.01890411,0.00022999,2]
[312875859,1706389832543,-500.0,0.00022999,2]
[312875860,1706389832554,-500.0,0.00022999,2]
[312875861,1706389832564,-500.0,0.00022999,2]
[312875862,1706389832573,-500.0,0.00022999,2]
[312875863,1706389832584,-500.0,0.00022999,2]
[312875864,1706389832594,-500.0,0.00022999,2]
[312875865,1706389832607,-486.09901408,0.00022999,2]
[312875866,1706389832618,-500.0,0.00022999,2]
[312875867,1706389832628,-500.0,0.00022999,2]
[312875868,1706389832638,-500.0,0.00022999,2]
[312875869,1706389832649,-303.80829428,0.00022999,2]
[312875870,1706389832660,-500.0,0.00022999,2]
[312875871,1706389832671,-500.0,0.00022999,2]
[312875872,1706389832682,-500.0,0.00022999,2]
[312875873,1706389832692,-500.0,0.00022999,2]
[312875874,1706389832702,-500.0,0.00022999,2]
[312875875,1706389832712,-500.0,0.00022999,2]
[312875876,1706389832722,-500.0,0.00022999,2]
[312875877,1706389832731,-500.0,0.00022999,2]
[312875878,1706389832741,-500.0,0.00022999,2]
[312875879,1706389832750,-500.0,0.00022999,2]
[312875880,1706389832759,-500.0,0.00022999,2]
[312875881,1706389832768,-500.0,0.00022999,2]
[312875882,1706389832777,-500.0,0.00022999,2]
[312875883,1706389832787,-500.0,0.00022999,2]
[312875884,1706389832796,-347.46358971,0.00022999,2]
[312875885,1706389832805,-216.03994754,0.00022999,2]
[312875886,1706389832816,-500.0,0.00022999,2]
[312875887,1706389832826,-500.0,0.00022999,2]
[312875888,1706389832837,-500.0,0.00022999,2]
[312875889,1706389832846,-500.0,0.00022999,2]
[312875890,1706389832856,-500.0,0.00022999,2]
[312875891,1706389832866,-500.0,0.00022999,2]
[312875892,1706389832875,-500.0,0.00022999,2]
[312875893,1706389832885,-500.0,0.00022999,2]
[312875894,1706389832895,-500.0,0.00022999,2]
[312875895,1706389832905,-65.37774848,0.00022999,2]
[312875896,1706389832918,-434.62225152,0.00022999,2]
[312875897,1706389832929,-440.74674848,0.00022999,2]
[312875898,1706389832951,-59.25325152,0.00022999,2]
[312875899,1706389832960,-454.19864431,0.00022999,2]
[312875910,1706389837952,-45.80135569,0.00022999,2]
[312875911,1706389837961,-500.0,0.00022999,2]
[312875912,1706389837971,-299.31856984,0.00022999,2]
[312875913,1706389837983,-200.68143016,0.00022999,2]
[312875914,1706389837992,-309.07522079,0.00022999,2]
[312875915,1706389838007,-190.92477921,0.00022999,2]
[312875916,1706389838018,-500.0,0.00022999,2]
[312875917,1706389838028,-500.0,0.00022999,2]
[312875918,1706389838038,-500.0,0.00022999,2]
[312875919,1706389838048,-500.0,0.00022999,2]
[312875920,1706389838057,-500.0,0.00022999,2]
[312875921,1706389838067,-500.0,0.00022999,2]
[312875922,1706389838077,-500.0,0.00022999,2]
[312875923,1706389838088,-499.49202083,0.00022999,2]
[312875924,1706389838098,-500.0,0.00022999,2]
[312875925,1706389838107,-500.0,0.00022999,2]
[312875926,1706389838118,-500.0,0.00022999,2]
[312875927,1706389838128,-500.0,0.00022999,2]
[312875928,1706389838138,-500.0,0.00022999,2]
[312875929,1706389838147,-500.0,0.00022999,2]
[312875930,1706389838157,-500.0,0.00022999,2]
[312875931,1706389838167,-500.0,0.00022999,2]
[312875932,1706389838178,-450.0,0.00022999,2]
[312875933,1706389838189,-5936.78990333,0.00022999,2]
[312875934,1706389838201,-404.09028032,0.00022999,2]
[312875935,1706389838213,-4866.95090215,0.00022999,2]
[312875936,1706389838225,-2946.33458273,0.00022999,2]
[312875937,1706389838242,-106983.6924331,0.00022999,2]
[312875938,1706389838252,-450.0,0.00022999,2]
[312875939,1706389838262,-500.0,0.00022999,2]
[312875940,1706389838271,-647.5509666,0.00022999,2]
[312875942,1706389838280,-482.91752448,0.00022999,2]
[312875944,1706389838289,-500.0,0.00022999,2]
[312875945,1706389838298,-500.0,0.00022999,2]
[312875947,1706389838307,-433.12140597,0.00022999,2]
[312875948,1706389838316,-350.0,0.00022999,2]
[312875949,1706389838326,-350.0,0.00022999,2]
[312875950,1706389838334,-152949.8391779,0.00023,2]
[312875952,1706389838346,-63606.01253809,0.00023,2]
[312875953,1706389838357,-1072.41174151,0.00023,2]
[312875954,1706389838368,-1340.12807225,0.00023,2]
[312876243,1706389841231,-263.1171412,0.00022999,2]
[312876245,1706389841244,-26.60475837,0.00022999,2]
[312876247,1706389841253,-299.61946213,0.00023,2]
[312876249,1706389841266,-1560.00677647,0.00023,2]
[312876356,1706389846047,-861.45188775,0.00023,2]
[312876360,1706389846227,-219856.99964222,0.00023,2]
[312876361,1706389846239,-255.3972002,0.00023,2]
[312876362,1706389846251,-400.6027998,0.00023,2]
[312876368,1706389847148,-27671.82504736,0.00023,2]
[312876369,1706389847160,-10559.1553198,0.00023,2]
[312876370,1706389847189,-333917.64125703,0.00023,2]
[312876371,1706389855869,544.45125247,0.00022079,2]
[312876372,1706389856284,385.21961048,0.00022309,2]
[312876373,1706389863569,374.90486076,0.00021848,7]
[312876374,1706389865623,300.0,0.000225,8]
[312876375,1706389867723,600.0,0.000226,8]
[312876376,1706389869821,900.0,0.000227,8]
[312876377,1706389871924,1200.0,0.000228,8]
[312876378,1706389874013,1500.0,0.000229,8]
[312876379,1706389885807,176.61,0.00022,2]
[312876380,1706389887070,235.91069741,0.00022548,2]
[312876383,1706389918246,154.23034226,0.00022668,2]
[312876385,1706389927132,163.76,0.00022509,2]
[312876386,1706389978380,1279.98838329,0.00022386,2]
[312876387,1706389978408,720.01161671,0.00022386,2]
[312876388,1706390067610,1111.15,0.00022344,2]
[312876389,1706390176084,385.53,0.00020131,2]
[312876390,1706390176313,385.53,0.00022395,2]
[312876391,1706390224319,182.55,0.00022049,2]
[312876392,1706390228744,507.2,0.00022049,2]
[312876393,1706390241734,173.1,0.00022049,2]
[312876394,1706390304650,250.0,0.00022071,2]
[312876395,1706390317505,250.0,0.00022044,2]
[312876396,1706390334552,9748.38,0.00022021,2]
[312876397,1706390344420,166.29,0.00022049,2]
[312876398,1706390424836,2000.0,0.00022076,2]
[312876399,1706390561266,925.95,0.00022073,2]
[312876400,1706390599788,155.13,0.00022343,2]
[312876401,1706390600004,155.13,0.00022408,2]
[312876402,1706390600223,155.13,0.00022473,2]
[312876403,1706390620671,368.41,0.00020101,2]
[312876404,1706390620874,368.41,0.00022365,2]
[312876406,1706390670269,594.24,0.00021972,2]
[312876407,1706390735780,250.0,0.00021983,2]
[312876408,1706390788879,154.23034225,0.0002243,2]
[312876409,1706390851218,-155.03759764,0.00022525,2]
[312876410,1706390866466,2000.0,0.00021983,2]
[312876419,1706390979466,797.88,0.00022006,2]
[312876429,1706391032217,-308.807424,0.00022519,2]
[312876430,1706391032271,-496.20108709,0.00022519,2]
[312876431,1706391032328,-1823.20115837,0.00022519,2]
[312876432,1706391032341,-2078.75304424,0.00022519,2]
[312876433,1706391032350,-623.08608683,0.0002252,2]
[312876434,1706391032361,-218.358611,0.00022523,2]
[312876435,1706391032370,-155.13,0.00022537,2]
[312876436,1706391032380,-756.85744404,0.000226,2]
[312876437,1706391032390,-155.13,0.00022602,2]
[312876438,1706391032399,-155.13,0.00022667,2]
[312876439,1706391032409,-155.13,0.00022731,2]
[312876440,1706391032419,-150.0,0.00022766,2]
[312876441,1706391032429,-2349.9881134,0.00022767,2]
[312876442,1706391032439,-59.81144956,0.00022767,2]
[312876443,1706391032450,-440.17855044,0.00022767,2]
[312876444,1706391032461,-3326.06231763,0.00022768,2]
[312876445,1706391032478,-336.60043481,0.00022768,2]
[312876446,1706391032490,-1589.76308293,0.00022768,2]
[312876447,1706391032501,-450.0,0.00022768,2]
[312876448,1706391032514,-2194.55656055,0.00022768,2]
[312876449,1706391032525,-399.11489546,0.00022768,2]
[312876450,1706391032535,-155.13,0.00022796,2]
[312876451,1706391032548,-293.08,0.0002282,2]
[312876452,1706391032557,-155.13,0.00022861,2]
[312876454,1706391032567,-690.49430614,0.00022898,2]
[312876456,1706391032576,-70.0207984,0.00022899,2]
[312876458,1706391032591,-929.9792016,0.00022899,2]
[312876460,1706391032601,-155.03614362,0.00022899,2]
[312876462,1706391032611,-850.78866918,0.000229,2]
[312876467,1706391038346,-155.0,0.00022518,2]
[312876468,1706391038356,-48648.74173324,0.000229,2]
[312876469,1706391038367,-6055.46959758,0.000229,2]
[312876470,1706391038380,-160.3584486,0.000229,2]
[312876471,1706391038390,-154.23034225,0.000229,2]
[312876472,1706391038400,-522.6083542,0.000229,2]
[312876473,1706391038409,-983.71817543,0.000229,2]
[312876474,1706391038419,-798.59162468,0.000229,2]
[312876475,1706391038428,-155.13,0.00022925,2]
[312876476,1706391038438,-155.13,0.0002299,2]
[312876477,1706391038447,-258.77909786,0.00022996,2]
[312876478,1706391038457,-284.88868145,0.00022996,2]
[312876479,1706391038466,-412.42049995,0.00022996,2]
[312876480,1706391038476,-649.22390048,0.00022996,2]
[312876481,1706391038487,-228.3602233,0.00022996,2]
[312876482,1706391038496,-1180.88616775,0.00022996,2]
[312876483,1706391038506,-399.46213699,0.00022997,2]
[312876484,1706391038515,-185.05485877,0.00022998,2]
[312876486,1706391038525,-248.80090434,0.00022998,2]
[312876487,1706391038534,-504.03826774,0.00022998,2]
[312876488,1706391038545,-155.0,0.00022998,2]
[312876489,1706391038558,-155.39702138,0.00022998,2]
[312876490,1706391038567,-155.0,0.00022998,2]
[312876491,1706391038577,-10524.21011333,0.00022998,2]
[312876492,1706391038587,-155.14895346,0.00022998,2]
[312876493,1706391038597,-8292.16261676,0.00022998,2]
[312876494,1706391038608,-1245.40466885,0.00022998,2]
[312876495,1706391038617,-3234.95429051,0.00022998,2]
[312876496,1706391038630,-346.93689193,0.00022998,2]
[312876498,1706391038640,-1262.39631924,0.00022998,2]
[312876500,1706391038649,-324.50523867,0.00022998,2]
[312876502,1706391038659,-1608.71393111,0.00022998,2]
[312876504,1706391038668,-5338.90514256,0.00022998,2]
[312876507,1706391038680,-18973.26162678,0.00022998,2]
[312876509,1706391038690,-263.27773987,0.00022998,2]
[312876510,1706391038699,-201.05535257,0.00022998,2]
[312876512,1706391038708,-155.0,0.00022998,2]
[312876514,1706391038718,-155.0,0.00022998,2]
[312876516,1706391038727,-697.51118737,0.00022998,2]
[312876519,1706391038736,-215.1525259,0.00022998,2]
[312876520,1706391038746,-164.06048249,0.00022998,2]
[312876522,1706391038755,-265.08803931,0.00022998,2]
[312876524,1706391038765,-155.19642721,0.00022998,2]
[312876527,1706391038774,-434.66438876,0.00022998,2]
[312876528,1706391038783,-164.20440428,0.00022998,2]
[312876530,1706391038792,-212.8984188,0.00022998,2]
[312876532,1706391038802,-19790.45633501,0.00023,2]
[312876534,1706391038813,-37223.85073624,0.00023,2]
[312876538,1706391038838,-2345.49457667,0.00023,2]
[312876540,1706391038850,-20595.49484518,0.00023,2]
[312876543,1706391038861,-3260711.94240072,0.00023,2]
[312876545,1706391038874,-152949.8391779,0.00023,2]
[312876547,1706391038885,-63606.01253809,0.00023,2]
[312876550,1706391038900,-2027.16868012,0.00023,2]
[312876552,1706391038915,-5700.0,0.00023,2]
[312876640,1706391041366,-1017.80621206,0.00023,2]
[312876641,1706391041419,-5044.6125838,0.00023,2]
[312876642,1706391041431,-660.87471969,0.00023,2]
[312876643,1706391041443,-391.0305,0.00023,2]
[312876644,1706391041480,-6234.09598664,0.00023,2]
[312876645,1706391041491,-3435.88350768,0.00023,2]
[312876646,1706391041538,-1458.89627204,0.00023,2]
[312876647,1706391041561,-303.84007919,0.00023,2]
[312876655,1706391043409,-279.603,0.00023,2]
[312876657,1706391043575,-84545.7906201,0.00023,2]
[312876668,1706391046423,-773.5465699,0.00022999,2]
[312876669,1706391046433,-257282.53346436,0.00023,2]
[312876670,1706391046442,-1463.79920878,0.00023,2]
[312876671,1706391046451,-155.13,0.00023055,2]
[312876672,1706391046460,-155.13,0.0002312,2]
[312876673,1706391046469,-1492.34081164,0.00023129,2]
[312876674,1706391046478,-330.0,0.0002313,2]
[312876675,1706391046486,-155.13,0.00023184,2]
[312876676,1706391046495,-3083.66523063,0.00023215,2]
[312876677,1706391046504,-155.13,0.00023249,2]
[312876678,1706391046513,-155.13,0.00023314,2]
[312876679,1706391046522,-298.18,0.00023364,2]
[312876680,1706391046531,-155.13,0.00023378,2]
[312876681,1706391046540,-155.13,0.00023443,2]
[312876682,1706391046663,-155.13,0.00023508,2]
[312876683,1706391046673,-797.88,0.0002365,2]
[312876684,1706391046682,-201.45283623,0.00024,2]
[312876685,1706391046691,-161.06,0.00024158,2]
[312876686,1706391046701,-150.58177433,0.000243,2]
[312876687,1706391046710,-2992.59,0.00024384,2]
[312876688,1706391046719,-368.41,0.00024629,2]
[312876689,1706391046728,-41.05556002,0.00024658,2]
[312876690,1706391046740,-315.10443998,0.00024658,2]
[312876691,1706391046749,-250.0,0.00024658,2]
[312876692,1706391046758,-202.78229782,0.00024719,2]
[312876693,1706391046769,-391.45770218,0.00024719,2]
[312876694,1706391046778,-298.18,0.00024734,2]
[312876695,1706391046787,-507.2,0.00024805,2]
[312876696,1706391046797,-166.29,0.00024805,2]
[312876697,1706391046805,-984.33988804,0.00025,2]
[312876698,1706391046830,-1596.3530505,0.00025,2]
[312876699,1706391046840,-1906.6972547,0.00025,2]
[312876700,1706391046849,-418.27294352,0.00025,2]
[312876701,1706391046859,-303.55478187,0.00025,2]
[312876702,1706391046869,-167.43304946,0.00025,2]
[312876703,1706391046880,-933.94016922,0.00025,2]
[312876704,1706391046889,-1249.31192992,0.00025,2]
[312876705,1706391046898,-550.0,0.00025,3]
[312876706,1706391046907,-164.0,0.00025043,2]
[312876707,1706391046916,-356.16,0.0002509,2]
[312876708,1706391046925,-797.88,0.00025294,2]
[312876709,1706391046934,-1103.44523163,0.00025386,2]
[312876710,1706391046945,-356.16,0.00025523,2]
[312876711,1706391046956,-356.16,0.00025955,2]
[312876712,1706391046966,-150.0,0.00026079,2]
[312876713,1706391046976,-625.867481,0.00026248,2]
[312876714,1706391046986,-356.16,0.00026388,2]
[312876715,1706391046996,-983.71817543,0.00026743,3]
[312876716,1706391047006,-356.16,0.0002682,2]
[312876717,1706391047016,-150.0,0.0002688,2]
[312876718,1706391047026,-150.0,0.0002688,2]
[312876719,1706391047035,-150.0,0.0002688,2]
[312876720,1706391047044,-150.0,0.0002688,2]
[312876721,1706391047054,-368.41,0.00026893,2]
[312876722,1706391047064,-797.88,0.00026938,2]
[312876723,1706391047073,-416.68282919,0.00027,2]
[312876724,1706391047083,-600.0,0.00027,3]
[312876725,1706391047093,-356.16,0.00027253,2]
[312876726,1706391047103,-338.53595614,0.00027397,5]
[312876727,1706391047112,-195.0,0.00027397,4]
[312876728,1706391047121,-208.88,0.00027397,2]
[312876729,1706391047131,-160.35844853,0.000274,2]
[312876730,1706391047141,-594.24,0.00027465,2]
[312876731,1706391047150,-186.00965543,0.000275,2]
[312876732,1706391047160,-176.03482943,0.000275,2]
[312876733,1706391047169,-507.2,0.00027561,2]
[312876734,1706391047178,-166.29,0.00027561,2]
[312876735,1706391047187,-3587.03,0.00027671,2]
[312876736,1706391047197,-356.16,0.00027686,2]
[312876737,1706391047206,-1103.44523163,0.00027828,2]
[312876738,1706391047215,-556.02380392,0.00028,2]
[312876739,1706391047224,-356.16,0.00028118,2]
[312876740,1706391047233,-6749.0,0.000285,2]
[312876741,1706391047243,-1650.0,0.000285,2]
[312876742,1706391047252,-356.16,0.00028551,2]
[312876743,1706391047261,-797.88,0.00028582,2]
[312876744,1706391047271,-3587.03,0.00028695,2]
[312876745,1706391047279,-167.02,0.00028781,2]
[312876746,1706391047288,-208.88,0.00028822,2]
[312876747,1706391047298,-356.16,0.00028983,2]
[312876748,1706391047307,-650.0,0.00029,3]
[312876749,1706391047316,-368.41,0.00029157,2]
[312876750,1706391047325,-161.06,0.00029284,2]
[312876751,1706391047334,-356.16,0.00029416,2]
[312876752,1706391047344,-256.81224917,0.000295,3]
[312876753,1706391047353,-3587.03,0.00029719,2]
[312876754,1706391047362,-176.08811858,0.000298,2]
[312876755,1706391047371,-356.16,0.00029848,2]
[312876756,1706391047380,-582.7666979,0.0003,2]
[312876757,1706391047390,-252.37950753,0.0003,4]
[312876758,1706391047399,-5564.77692806,0.0003,4]
[312876759,1706391047410,-764.11347582,0.0003,4]
[312876760,1706391047419,-5416.51141317,0.0003,2]
[312876761,1706391047430,-692.52631931,0.0003,2]
[312876762,1706391047439,-155.0,0.0003,2]
[312876763,1706391047449,-312.23569511,0.0003,2]
[312876764,1706391047458,-2600.094604,0.0003,2]
[312876765,1706391047467,-158.35,0.0003,2]
[312876766,1706391047476,-158.35,0.0003,2]
[312876767,1706391047485,-153.62,0.0003,2]
[312876768,1706391047494,-925.41555,0.0003,2]
[312876769,1706391047503,-925.41554,0.0003,2]
[312876770,1706391047512,-925.41554,0.0003,2]
[312876771,1706391047521,-925.41555,0.0003,2]
[312876772,1706391047530,-925.41554,0.0003,2]
[312876773,1706391047539,-925.41554,0.0003,2]
[312876774,1706391047553,-153.91,0.00030137,2]
[312876775,1706391047565,-594.24,0.00030212,2]
[312876776,1706391047574,-797.88,0.00030226,2]
[312876777,1706391047583,-1103.44523163,0.00030269,2]
[312876778,1706391047593,-356.16,0.00030281,2]
[312876779,1706391047603,-507.2,0.00030317,2]
[312876780,1706391047614,-166.29,0.00030317,2]
[312876781,1706391047624,-983.71817543,0.00030586,5]
[312876782,1706391047639,-356.16,0.00030714,2]
[312876783,1706391047649,-3587.03,0.00030743,2]
[312876784,1706391047659,-602.1965483,0.000308,2]
[312876785,1706391047669,-15941.5324694,0.000309,2]
[312876786,1706391047680,-7620.68184463,0.00031,2]
[312876787,1706391047690,-370.5389926,0.00031,2]
[312876788,1706391047699,-700.0,0.00031,3]
[312876789,1706391047708,-356.16,0.00031146,2]
[312876790,1706391047718,-368.41,0.0003142,2]
[312876791,1706391047728,-254.25355209,0.00031497,4]
[312876792,1706391047738,-356.16,0.00031579,2]
[312876793,1706391047747,-180.0,0.00031644,2]
[312876794,1706391047758,-3587.03,0.00031767,2]
[312876795,1706391047769,-12050.2602186,0.000318,3]
[312876796,1706391047779,-160.35844853,0.000319,2]
[312876797,1706391047789,-374.92675683,0.00032,2]
[312876798,1706391047799,-263.89358247,0.00032,2]
[312876799,1706391047810,-356.16,0.00032011,2]
[312876800,1706391047820,-668.0,0.0003228,5]
[312876801,1706391047830,-153.91,0.00032329,2]
[312876802,1706391047839,-356.16,0.00032444,2]
[312876803,1706391047849,-161.63385363,0.000325,2]
[312876804,1706391047858,-1103.44523163,0.0003271,4]
[312876805,1706391047871,-14441.32981494,0.0003278,5]
[312876806,1706391047880,-197391.71437331,0.000328,2]
[312876807,1706391047893,-276.36,0.000328,2]
[312876808,1706391047908,-15784.99912424,0.000328,2]
[312876810,1706391490275,-2337.25095758,0.00022897,2]
[312876811,1706391490296,-150.0,0.00022897,2]
[312876812,1706391490318,-217.58620789,0.00022898,2]
[312876813,1706391490339,-164.27753004,0.00022898,2]
[312876814,1706391490360,-4706.9627137,0.00022898,2]
[312876815,1706391490382,-841.83948562,0.00022898,2]
[312876816,1706391490404,-191582.08310517,0.00022899,2]
[312876817,1706391679801,220.04320149,0.00021899,2]
[312876818,1706392027134,-150.00438854,0.00022797,2]
[312876829,1706392232310,-199.60879995,0.00022796,2]
[312876830,1706392232320,-206.7068976,0.00022797,2]
[312876831,1706392232330,-203.54774907,0.00022888,2]
[312876832,1706392232341,-784.17302211,0.00022888,2]
[312876833,1706392232352,-1305.85682394,0.00022888,2]
[312876834,1706392232369,-2207.00678967,0.00022888,2]
[312876835,1706392232386,-143.8050647,0.00022888,2]
[312876836,1706392232397,-218.34785309,0.00022889,2]
[312876837,1706392232406,-71.35890551,0.00022894,2]
[312876838,1706392232418,-800.0,0.00022894,2]
[312876839,1706392232429,-334.20511241,0.00022894,2]
[312876840,1706392232438,-498.54129537,0.00022895,2]
[312876841,1706392232447,-155.63258898,0.00022895,2]
[312876842,1706392232456,-767.58742384,0.00022895,2]
[312876843,1706392232466,-285.79694982,0.00022895,2]
[312876844,1706392232476,-155.72319899,0.00022895,2]
[312876845,1706392232485,-328.13541598,0.00022895,2]
[312876846,1706392232548,-58.55932279,0.00022895,2]
[312876847,1706392232557,-208.22633055,0.00022895,2]
[312876848,1706392232567,-1140.03723955,0.00022895,2]
[312876849,1706392232579,-2725.66863525,0.00022895,2]
[312876850,1706392232588,-261.21593204,0.00022895,2]
[312876851,1706392232597,-155.82054156,0.00022895,2]
[312876852,1706392232607,-155.0,0.00022895,2]
[312876853,1706392232616,-1120.14795465,0.00022895,2]
[312876854,1706392232625,-155.79842865,0.00022895,2]
[312876855,1706392232634,-3441.66124298,0.00022896,2]
[312876856,1706392232647,-167.88519402,0.00022896,2]
[312876857,1706392232656,-155.55978257,0.00022897,2]
[312876858,1706392232665,-39.28827824,0.00022897,2]
[312876859,1706392232684,-1288.64349942,0.00022897,2]
[312876860,1706392232695,-383.23600317,0.00022897,2]
[312876861,1706392232714,-553.31996326,0.00022897,2]
[312876862,1706392232726,-256.64643938,0.00022897,2]
[312876863,1706392232737,-127.19077162,0.00022897,2]
[312876864,1706392232746,-269.72157515,0.00022897,2]
[312876865,1706392232755,-189.69099009,0.00022897,2]
[312876869,1706392238354,-678.22150474,0.00022897,2]
[312876870,1706392238417,-2787.98911419,0.00022897,2]
[312876871,1706392238427,-155.15859848,0.00022897,2]
[312876872,1706392238436,-285.77867824,0.00022897,2]
[312876873,1706392238446,-248.55625965,0.00022897,2]
[312876874,1706392238455,-155.21286653,0.00022897,2]
[312876875,1706392238465,-155.42759983,0.00022897,2]
[312876876,1706392238474,-1000.0,0.00022897,2]
[312876877,1706392238483,-1131.61788344,0.00022897,2]
[312876878,1706392238493,-155.28870957,0.00022897,2]
[312876879,1706392238502,-323.65550871,0.00022897,2]
[312876880,1706392238512,-1130.93848285,0.00022897,2]
[312876881,1706392238521,-510.13598131,0.00022898,2]
[312876882,1706392238531,-2997.24565878,0.00022898,2]
[312876883,1706392238540,-164.27753004,0.00022898,2]
[312876884,1706392238554,-91863.7844253,0.00022899,2]
[312876885,1706392238563,-160.34459948,0.00022998,2]
[312876886,1706392238572,-499.99,0.00022998,2]
[312876887,1706392238582,-3367.91,0.00022998,2]
[312876888,1706392238591,-1011.22518572,0.00022999,5]
[312876889,1706392238601,-206.70689744,0.00023652,2]
[312876890,1706392238610,-206.70689744,0.00024508,2]
[312876891,1706392238619,-550.0,0.00025,3]
[312876892,1706392238629,-206.70689744,0.00025363,2]
[312876893,1706392238638,-206.70689744,0.00026218,2]
[312876894,1706392238649,-600.0,0.00027,3]
[312876895,1706392238658,-206.70689744,0.00027074,2]
[312876896,1706392238667,-1567.0,0.000277,2]
[312876897,1706392238677,-6669.0,0.000277,2]
[312876898,1706392238685,-202.0,0.0002784,2]
[312876899,1706392238694,-206.70689744,0.00027929,2]
[312876900,1706392238703,-307.66,0.00028371,2]
[312876902,1706392238712,-206.70689744,0.00028784,2]
[312876904,1706392238722,-650.0,0.00029,3]
[312876906,1706392238732,-206.70689744,0.0002964,2]
[312876908,1706392238742,-202.0,0.0002985,5]
[312876910,1706392238751,-250.0,0.00029974,2]
[312876912,1706392238760,-155.0,0.0003,2]
[312876914,1706392238769,-551.27,0.00030277,2]
[312876916,1706392238778,-881.15,0.00030351,2]
[312876917,1706392238787,-173.1,0.00030398,120]
[312876918,1706392238796,-150.0,0.00030437,2]
[312876919,1706392238805,-206.70689744,0.00030495,2]
[312876920,1706392238814,-250.0,0.00030555,2]
[312876921,1706392238823,-250.0,0.00030594,2]
[312876922,1706392238833,-307.66,0.00030635,2]
[312876923,1706392238842,-161.14,0.00030689,2]
[312876924,1706392238851,-700.0,0.00031,3]
[312876925,1706392238860,-1930.73,0.00031212,2]
[312876926,1706392238869,-161.14,0.00031222,2]
[312876927,1706392238878,-206.70689744,0.0003135,2]
[312876928,1706392238887,-551.27,0.00031397,2]
[312876929,1706392238896,-166.29,0.00031402,2]
[312876930,1706392238909,-2493.82,0.00031474,2]
[312876931,1706392238918,-198.08,0.00031677,2]
[312876932,1706392238928,-161.14,0.00031755,2]
[312876933,1706392238937,-202.0,0.0003186,9]
[312876934,1706392238946,-689.60722482,0.00032135,3]
[312876935,1706392238955,-206.70689744,0.00032205,2]
[312876936,1706392238964,-161.14,0.00032288,2]
[312876937,1706392238973,-153.61,0.000324,2]
[312876938,1706392238984,-158.34,0.000324,2]
[312876939,1706392238994,-158.34,0.000324,2]
[312876940,1706392239003,-551.27,0.00032517,2]
[312876941,1706392239012,-150.0,0.000327,2]
[312876942,1706392239022,-411.34269219,0.00032796,4]
[312876943,1706392239032,-524.52603564,0.00032796,4]
[312876944,1706392239041,-448.4688739,0.00032798,2]
[312876945,1706392239050,-619.275,0.00032799,4]
[312876946,1706392239059,-18104.15639739,0.000328,2]
[312876947,1706392239072,-9120.66324871,0.000328,2]
[312876948,1706392239081,-500.0,0.000328,2]
[312876949,1706392239090,-674.9808053,0.000328,4]
[312876950,1706392239100,-150.0,0.000328,4]
[312876951,1706392239110,-356.16,0.00032876,2]
[312876952,1706392239122,-191.0,0.00032877,15]
[312876953,1706392239131,-307.66,0.00032899,2]
[312876954,1706392239141,-500.0,0.00032999,2]
[312876955,1706392239150,-750.0,0.00033,3]
[312876956,1706392239159,-206.70689744,0.00033061,2]
[312876957,1706392239168,-153.91,0.00033125,2]
[312876958,1706392239178,-357.91955435,0.00033268,2]
[312876959,1706392239187,-379.76,0.000335,2]